Workbook

Sheet ТМЦ (hidden)
D1: подотчетные МОИ
A3: ном № | D3: наименование | H3: код | I3: ед. изм | J3: кол-во | K3: цена | L3: сумма | M3: дата
A4: 2379480009 | B4: 3 | D4: ЛЕНТА САМОКЛЕЮЩАЯСЯ | E4: LUXTAPE | G4: 50Х90 | H4: 796 | I4: шт | J4: 1 | K4: 200 | L4: =J4*K4 -> 200 | M4: 2018-08-01
A5: 2332190029 | B5: 9 | D5: ПАСТА КОЛЕРНАЯ | E5: ПАЛИТРА | G5: 100МЛ СИНИЙ | H5: 796 | I5: шт | J5: 3 | K5: 40 | L5: =J5*K5 -> 120 | M5: 2018-08-01
A6: 1650001811 | B6: 9 | D6: ВИНТ САМОНАРЕЗАЮЩИЙ | E6: ULTRAFIX | G6: 3,5Х35 | H6: 796 | I6: шт | J6: 500 | K6: 0.45 | L6: =J6*K6 -> 225 | M6: 2018-08-01
A7: 1271100119 | B7: 3 | D7: ДЮБЕЛЬ-ГВОЗДЬ | E7: WKRET-MET SMK | G7: 6Х40 | H7: 796 | I7: шт | J7: 200 | K7: 1.5 | L7: =J7*K7 -> 300 | M7: 2018-08-03
A8: 9693100417 | B8: 9 | D8: ПОДВЕС ПРЯМОЙ ДЛЯ ГИПСОКАРТОНА | E8: АРТ.3052 | G8: 300Х30Х0,6 DОТВ=4/6 КРОКОДИЛ | H8: 796 | I8: шт | J8: 100 | K8: 4 | L8: =J8*K8 -> 400 | M8: 2018-08-06
A9: 2313940019 | B9: 9 | D9: ЗАТИРКА ДЛЯ ШВОВ | E9: EK F-100 | F9: ТУ 5745-026-47532402-05 | G9: 2КГ БЕЛЫЙ | H9: 796 | I9: шт | J9: 2 | K9: 165 | L9: 330 | M9: 2018-08-06
A10: 5767730005 | B10: 9 | D10: ГИПСОКАРТОН ЛИСТОВОЙ | E10: ТИГИ-КНАУФ | G10: 2500Х1200Х9.5 | H10: 796 | I10: шт | J10: 10 | K10: 295 | L10: 2950 | M10: 2018-08-07
A11: 2248120352 | B11: 3 | D11: ТРОЙНИК ПОЛИПРОПИЛЕНОВЫЙ ДЛЯ ТРУБ | E11: PILSA PPYT20 | G11: ДУ=20 БЕЛЫЙ | H11: 796 | I11: шт | J11: 2 | K11: 6.5 | L11: 13 | M11: 2018-08-08
A12: 2248120234 | B12: 3 | D12: УГОЛЬНИК ПОЛИПРОПИЛЕНОВЫЙ | E12: TEBO 015030101 | G12: 20 90ГРАДУСОВ | H12: 796 | I12: шт | J12: 10 | K12: 4.5 | L12: 45 | M12: 2018-08-08
A13: 2248120272 | B13: 9 | D13: УГОЛЬНИК ПОЛИПРОПИЛЕНОВЫЙ | E13: PRO AQUA PP-R | F13: ТУ 2248-032-00284581-98 | G13: D20 90ГРАДУСОВ | H13: 796 | I13: шт | J13: 5 | K13: 4 | L13: 20 | M13: 2018-08-08
A14: 2248120265 | B14: 3 | D14: КРЕПЛЕНИЕ ПОЛИПРОПИЛЕНОВОЕ | E14: FIRAT 7B33000020 | G14: 20ММ | H14: 796 | I14: шт | J14: 10 | K14: 2.5 | L14: 25 | M14: 2018-08-08
A15: 2248130079 | B15: 9 | D15: ГОФРА ДЛЯ УНИТАЗА С ВЫХОДОМ | E15: АНИ К 821 | G15: 110 | H15: 796 | I15: шт | J15: 1 | K15: 133 | L15: 133 | M15: 2018-08-08
A16: 4951710001 | B16: 3 | D16: СИФОН БУТЫЛОЧНЫЙ ДЛЯ РАКОВИНЫ | E16: HATRIA 0421.0051 | G16: ХРОМ | H16: 796 | I16: шт | J16: 1 | K16: 200 | L16: 200 | M16: 2018-08-08
A17: 2248120070 | B17: 9 | D17: ТРУБА НАПОРНАЯ ПОЛИПРОПИЛЕНОВАЯ | E17: ПП | F17: ТУ 38.102.100-89 | G17: 20Х1,9 1МПА | H17: 6 | I17: м | J17: 4 | K17: 37 | L17: 148 | M17: 2018-08-08
A18: 2248120089 | B18: 9 | D18: ОТВОД КАНАЛИЗАЦИОННЫЙ ИЗ ПОЛИПРОПИЛЕНА | G18: 50 87ГРАДУСОВ | H18: 796 | I18: шт | J18: 1 | K18: 15 | L18: 15 | M18: 2018-08-08
A19: 2248110017 | B19: 9 | D19: ТРУБА КАНАЛИЗАЦИОННАЯ ПП 110*1500 | G19: 110Х1500 | H19: 796 | I19: шт | J19: 1 | K19: 79 | L19: 79 | M19: 2018-08-08
A20: 4951140011 | B20: 3 | D20: СМЕСИТЕЛЬ ДЛЯ РАКОВИНЫ | E20: RODDEX | H20: 796 | I20: шт | J20: 1 | K20: 500 | L20: 500 | M20: 2018-08-08
A21: 2379480157 | B21: 3 | D21: ЛЕНТА САМОКЛЕЮЩАЯСЯ | E21: MECO 01410 | G21: 15Х250 | H21: 796 | I21: шт | J21: 1 | K21: 90 | L21: 90 | M21: 2018-08-13
A22: 3187895231 | B22: 3 | D22: ЗАМОК ВИСЯЧИЙ | E22: GEGE610/50 SPERRE 1 | H22: 796 | I22: шт | J22: 1 | K22: 204 | L22: 204 | M22: 2018-08-13
A23: 4981110111 | B23: 3 | D23: ЗАМОК ВИСЯЧИЙ | E23: APECS PD-01-38 | H23: 796 | I23: шт | J23: 1 | K23: 135 | L23: 135 | M23: 2018-08-13
A24: 2332190014 | B24: 3 | D24: ПАСТА КОЛЕРНАЯ | E24: JOBI | G24: ЗЕЛЕНОЕ ЯБЛОКО | H24: 796 | I24: шт | J24: 6 | K24: 50 | L24: 300 | M24: 2018-08-13
A25: 2559290005 | B25: 9 | D25: ШЛАНГ РЕЗИНОВЫЙ | E25: VEIT EPDM | G25: 7,5Х3,5-1,5МПА | H25: 6 | I25: м | J25: 15 | K25: 120 | L25: 1800 | M25: 2018-08-14
A26: 5275220014 | B26: 9 | D26: ПОРОГ-СТЫК АЛЮМИНИЕВЫЙ ДЛЯ НАПОЛЬНЫХ ПОКРЫТИЙ | E26: АЛ-163 | G26: 28Х1000 БУК | H26: 796 | I26: шт | J26: 3 | K26: 200 | L26: 600 | M26: 2018-08-15
A27: 2312221732 | B27: 9 | D27: ЭМАЛЬ ДЛЯ РАДИАТОРОВ ГЛЯНЦЕВАЯ 400мл | E27: ЛАКРА | F27: ТУ 2312-081-45860602-2010 | G27: 1КГ БЕЛЫЙ | H27: 796 | I27: шт | J27: 2 | K27: 215 | L27: 430 | M27: 2018-08-17
A28: 2248120090 | B28: 9 | D28: ОТВОД КАНАЛИЗАЦИОННЫЙ ИЗ ПОЛИПРОПИЛЕНА | G28: 110 87ГРАДУСОВ | H28: 796 | I28: шт | J28: 2 | K28: 85 | L28: 170 | M28: 2018-08-17
A29: 2248200007 | B29: 9 | D29: ТРУБА ДЛЯ НАРУЖНОЙ КАНАЛИЗАЦИИ | E29: POLYTRON ПВХ | F29: ТУ 2248-043-00284571-2000 | G29: 50Х2000 | H29: 796 | I29: шт | J29: 5 | K29: 505 | L29: 2525 | M29: 2018-08-17
A30: 2313920103 | B30: 9 | D30: ГРУНТ-ЭМАЛЬ ПО РЖАВЧИНЕ | E30: ТЕКС РЖАВО STOP | G30: 0,9КГ СЕРЫЙ | H30: 796 | I30: шт | J30: 1 | K30: 278 | L30: 278 | M30: 2018-08-20
A31: 2319100001 | B31: 3 | D31: РАСТВОРИТЕЛЬ | E31: PRINT PRODUCT D-LIMONENE | G31: 250МЛ | H31: 796 | I31: шт | J31: 2 | K31: 50 | L31: 100 | M31: 2018-08-20
A32: 4923200055 | B32: 3 | D32: СГОН ПРЯМОЙ | E32: VALTEC VTR 341 | G32: 1ДЮЙМ ВР-НР | H32: 796 | I32: шт | J32: 1 | K32: 40 | L32: 40 | M32: 2018-08-20
A33: 1462000800 | B33: 9 | D33: СГОН СТАЛЬНОЙ С ЦИЛИНДРИЧЕСКОЙ РЕЗЬБОЙ | F33: ГОСТ 8969-75 | G33: DУ=50 L=17/65/150 2ДЮЙМА 1,6МПА | H33: 796 | I33: шт | J33: 2 | K33: 15 | L33: 30 | M33: 2018-08-20
A34: 1680002347 | B34: 9 | D34: КОНТРГАЙКА | E34: 8ТН.940.018-01 | G34: 1ДЮЙМ | H34: 796 | I34: шт | J34: 1 | K34: 15 | L34: 15 | M34: 2018-08-20
A35: 2248120208 | B35: 3 | D35: МУФТА ПРЯМАЯ | E35: PRO AQUA PP-R PA12010P | G35: 25 | H35: 796 | I35: шт | J35: 1 | K35: 45 | L35: 45 | M35: 2018-08-20
A36: 1468100069 | B36: 9 | D36: ОТВОД СТАЛЬНОЙ КРУТОИЗОГНУТЫЙ | E36: ИСПОЛНЕНИЕ 2 | F36: ГОСТ 30753-2001 | G36: 25Х3.2 90ГРАДУСОВ | H36: 796 | I36: шт | J36: 2 | K36: 29 | L36: 58 | M36: 2018-08-20
A37: 1468106002 | B37: 9 | D37: ОТВОД СТАЛЬНОЙ КРУТОИЗОГНУТЫЙ | E37: ИСПОЛНЕНИЕ 2 СТ20 | F37: ГОСТ 17375-2001 | G37: 325Х10 90ГРАДУСОВ | H37: 796 | I37: шт | J37: 2 | K37: 20 | L37: 40 | M37: 2018-08-20
A38: 8112110013 | B38: 9 | D38: ЛЕН САНТЕХНИЧЕСКИЙ | E38: ЭКСТРА | F38: ГОСТ 10330-76 | G38: 100Г | H38: 796 | I38: шт | J38: 5 | K38: 20 | L38: 100 | M38: 2018-08-20
A39: 2293190191 | B39: 9 | D39: КЮВЕТА ПЛАСТМАССОВАЯ ДЛЯ КРАСКИ | G39: 330Х350 | H39: 796 | I39: шт | J39: 1 | K39: 60 | L39: 60 | M39: 2018-08-20
A40: 9677510048 | B40: 9 | D40: КИСТЬ МАЛЯРНАЯ ПЛОСКАЯ | E40: КП-25 | H40: 796 | I40: шт | J40: 2 | K40: 60 | L40: 120 | M40: 2018-08-20
A41: 9677510049 | B41: 9 | D41: КИСТЬ МАЛЯРНАЯ ПЛОСКАЯ | E41: КП-50 | H41: 796 | I41: шт | J41: 2 | K41: 70 | L41: 140 | M41: 2018-08-20
A42: 9677510221 | B42: 3 | D42: ВАЛИК МАЛЯРНЫЙ ПОЛИАКРИЛ | E42: WORKMAN | G42: 180 | H42: 796 | I42: шт | J42: 4 | K42: 145 | L42: 580 | M42: 2018-08-20
A43: 9693100417 | B43: 9 | D43: ПОДВЕС ПРЯМОЙ ДЛЯ ГИПСОКАРТОНА | E43: АРТ.3052 | G43: 300Х30Х0,6 DОТВ=4/6 КРОКОДИЛ | H43: 796 | I43: шт | J43: 30 | K43: 10 | L43: 300 | M43: 2018-08-21
A44: 1650001173 | B44: 9 | D44: ВИНТ САМОНАРЕЗАЮЩИЙ | G44: 2,5Х12 ЖЕЛТЫЙ | H44: 166 | I44: кг | J44: 0.57 | K44: 350 | L44: 199.5 | M44: 2018-08-23
A45: 9692810024 | B45: 3 | D45: СКОБЫ ДЛЯ СТЕПЛЕРА | E45: KW-TRIO 023F | G45: №23/15 1000ШТ | H45: 796 | I45: шт | J45: 1 | K45: 145 | L45: 145 | M45: 2018-08-23
A46: 2293110081 | B46: 9 | D46: ПАКЕТ ПОЛИЭТИЛЕНОВЫЙ ФАСОВОЧНЫЙ | G46: 200Х280 | H46: 796 | I46: шт | J46: 1 | K46: 1.4 | L46: 1.4 | M46: 2018-08-23
A47: 1650000171 | B47: 9 | D47: ВИНТ САМОНАРЕЗАЮЩИЙ ДЛЯ ГИПСОКАРТОНА | E47: ГКЛ | G47: 5,5Х51 | H47: 166 | I47: кг | J47: 0.25 | K47: 470 | L47: 117.5 | M47: 2018-08-23
A48: 4573750014 | B48: 9 | D48: РЕЛЕ ВТЯГИВАЮЩЕЕ СТАРТЕРА | E48: СТ230Б2-3708820 | F48: УАЗ-451, УАЗ-452 | H48: 796 | I48: шт | J48: 1 | K48: 1845 | L48: 1845 | M48: 2018-08-23
A49: 2311220052 | B49: 9 | D49: ЛАК ПАРКЕТНЫЙ | E49: ПФ-283 | F49: ГОСТ 5470-75 | G49: 0,5Л | H49: 796 | I49: шт | J49: 1 | K49: 185 | L49: =J49*K49 -> 185 | M49: 2018-08-24
A50: 2293190191 | B50: 9 | D50: КЮВЕТА ПЛАСТМАССОВАЯ ДЛЯ КРАСКИ | G50: 330Х350 | H50: 796 | I50: шт | J50: 1 | K50: 60 | L50: =J50*K50 -> 60 | M50: 2018-08-24
A51: 9677510050 | B51: 9 | D51: КИСТЬ МАЛЯРНАЯ ПЛОСКАЯ | E51: КП-63 | H51: 796 | I51: шт | J51: 1 | K51: 135 | L51: =J51*K51 -> 135 | M51: 2018-08-24
A52: 9677510221 | B52: 3 | D52: ВАЛИК МАЛЯРНЫЙ ПОЛИАКРИЛ | E52: WORKMAN | G52: 180 | H52: 796 | I52: шт | J52: 1 | K52: 145 | L52: =J52*K52 -> 145 | M52: 2018-08-24
A53: 3468550155 | B53: 3 | D53: ПУШКА ТЕПЛОВАЯ | E53: BALLU BHP-5.000C | G53: 5/3КВТ 400М3/Ч 220В | H53: 796 | I53: шт | J53: 1 | K53: 4490 | L53: 4490 | M53: 2018-08-27
A54: 2322900071 | B54: 9 | D54: ПАСТА КОЛЕРОВОЧНАЯ УНИВЕРСАЛЬНАЯ | E54: ПАЛИЖ СТАНДАРТ № 18 | F54: ТУ 2316-001-49630959-02 | G54: 100МЛ ЧЕРНЫЙ | H54: 796 | I54: шт | J54: 4 | K54: 40 | L54: 160 | M54: 2018-08-28
A55: 2282800088 | B55: 9 | D55: СЕТКА МОСКИТНАЯ | E55: АРТ.000795 | G55: 2030Х500 | H55: 796 | I55: шт | J55: 2 | K55: 300 | L55: 600 | M55: 2018-08-28
A56: 2248120313 | B56: 3 | D56: МУФТА ПОЛИПРОПИЛЕНОВАЯ СОЕДИНИТЕЛЬНАЯ | E56: TEBO (30/390) 48802 | G56: 32 | H56: 796 | I56: шт | J56: 6 | K56: 9 | L56: =J56*K56 -> 54 | M56: 2018-08-30
L57: =J57*K57 -> 0
L58: =J58*K58 -> 0
K59: итого | L59: =SUM(L4:L58) -> 22000.4
K60: остаток | L60: =22000-L59 -> -0.4

Sheet ПРИХОД за месяц
BB1: Типовая межотраслевая форма № М-4
BB2: Утверждена распоряжением ОАО "РЖД"
BB3: от 15.12.2008 г. № 2688р
AD4: ПРИХОДНЫЙ ОРДЕР №
CJ5: Коды
BT6: Форма по ОКУД | CJ6: 0315003
A7: Организация | BZ7: по ОКПО | CJ7: 00083262
A8: Структурное подразделение | CJ8: 6004
A10: Дата соста-вления | F10: Код вида операции | J10: Склад | O10: Поставщик/ грузоотправитель | AG10: Страховая компания | AN10: Корреспонди-рующий счет | BE10: Номер документа
O12: наименование | AC12: код | AN12: счет, субсчет | AV12: код анали-тического учета ческого учета | BE12: сопроводи- тельного | BW12: платежного
J14: F004/002
A16: Материальные ценности | AD16: Единица измерения | AL16: Количество | BB16: Цена, руб. коп. | BJ16: Сумма без учета НДС,руб. коп. | BR16: Сумма НДС, руб. коп. | BZ16: Всего с учетом НДС, руб. коп. | CH16: Номер пас-пор- та | CL16: Порядковый номер по складской картотеке | CS16: Дата
A18: наименование, сорт, размер, марка | X18: номенклатур- ный номер | AD18: код | AG18: наимено- вание | AL18: по доку-менту | AT18: принято
A20: 1 | X20: 2 | AD20: 3 | AG20: 4 | AL20: 5 | AT20: 6 | BB20: 7 | BJ20: 8 | BR20: 9 | BZ20: 10 | CH20: 11 | CL20: 12 | CS20: 13
A21: ЛЕНТА САМОКЛЕЮЩАЯСЯ | X21: 2379480009 | AD21: 796 | AG21: шт | AL21: 1 | AT21: 1 | BB21: 200 | BJ21: 200 | BZ21: 200 | CS21: 1
A22: ПАСТА КОЛЕРНАЯ | X22: 2332190029 | AD22: 796 | AG22: шт | AL22: 3 | AT22: 3 | BB22: 40 | BJ22: 120 | BZ22: 120 | CS22: 1
A23: ВИНТ САМОНАРЕЗАЮЩИЙ | X23: 1650001811 | AD23: 796 | AG23: шт | AL23: 500 | AT23: 500 | BB23: 0.45 | BJ23: 225 | BZ23: 225 | CS23: 1
A24: ДЮБЕЛЬ-ГВОЗДЬ | X24: 1271100119 | AD24: 796 | AG24: шт | AL24: 200 | AT24: 200 | BB24: 1.5 | BJ24: 300 | BZ24: 300 | CS24: 3
A25: ПОДВЕС ПРЯМОЙ ДЛЯ ГИПСОКАРТОНА | X25: 9693100417 | AD25: 796 | AG25: шт | AL25: 100 | AT25: 100 | BB25: 4 | BJ25: 400 | BZ25: 400 | CS25: 6
A26: ЗАТИРКА ДЛЯ ШВОВ | X26: 2313940019 | AD26: 796 | AG26: шт | AL26: 2 | AT26: 2 | BB26: 165 | BJ26: 330 | BZ26: 330 | CS26: 6
A27: ГИПСОКАРТОН ЛИСТОВОЙ | X27: 5767730005 | AD27: 796 | AG27: шт | AL27: 10 | AT27: 10 | BB27: 295 | BJ27: 2950 | BZ27: 2950 | CS27: 7
A28: ТРОЙНИК ПОЛИПРОПИЛЕНОВЫЙ ДЛЯ ТРУБ | X28: 2248120352 | AD28: 796 | AG28: шт | AL28: 2 | AT28: 2 | BB28: 6.5 | BJ28: 13 | BZ28: 13 | CS28: 8
A29: УГОЛЬНИК ПОЛИПРОПИЛЕНОВЫЙ | X29: 2248120234 | AD29: 796 | AG29: шт | AL29: 10 | AT29: 10 | BB29: 4.5 | BJ29: 45 | BZ29: 45 | CS29: 8
A30: УГОЛЬНИК ПОЛИПРОПИЛЕНОВЫЙ | X30: 2248120272 | AD30: 796 | AG30: шт | AL30: 5 | AT30: 5 | BB30: 4 | BJ30: 20 | BZ30: 20 | CS30: 8
A31: КРЕПЛЕНИЕ ПОЛИПРОПИЛЕНОВОЕ | X31: 2248120265 | AD31: 796 | AG31: шт | AL31: 10 | AT31: 10 | BB31: 2.5 | BJ31: 25 | BZ31: 25 | CS31: 8
A32: ГОФРА ДЛЯ УНИТАЗА С ВЫХОДОМ | X32: 2248130079 | AD32: 796 | AG32: шт | AL32: 1 | AT32: 1 | BB32: 133 | BJ32: 133 | BZ32: 133 | CS32: 8
A33: СИФОН БУТЫЛОЧНЫЙ ДЛЯ РАКОВИНЫ | X33: 4951710001 | AD33: 796 | AG33: шт | AL33: 1 | AT33: 1 | BB33: 200 | BJ33: 200 | BZ33: 200 | CS33: 8
A34: ТРУБА НАПОРНАЯ ПОЛИПРОПИЛЕНОВАЯ | X34: 2248120070 | AD34: 6 | AG34: м | AL34: 4 | AT34: 4 | BB34: 37 | BJ34: 148 | BZ34: 148 | CS34: 8
A35: ОТВОД КАНАЛИЗАЦИОННЫЙ ИЗ ПОЛИПРОПИЛЕНА | X35: 2248120089 | AD35: 796 | AG35: шт | AL35: 1 | AT35: 1 | BB35: 15 | BJ35: 15 | BZ35: 15 | CS35: 8
A36: ТРУБА КАНАЛИЗАЦИОННАЯ ПП 110*1500 | X36: 2248110017 | AD36: 796 | AG36: шт | AL36: 1 | AT36: 1 | BB36: 79 | BJ36: 79 | BZ36: 79 | CS36: 8
A37: СМЕСИТЕЛЬ ДЛЯ РАКОВИНЫ | X37: 4951140011 | AD37: 796 | AG37: шт | AL37: 1 | AT37: 1 | BB37: 500 | BJ37: 500 | BZ37: 500 | CS37: 8
A38: ЛЕНТА САМОКЛЕЮЩАЯСЯ | X38: 2379480157 | AD38: 796 | AG38: шт | AL38: 1 | AT38: 1 | BB38: 90 | BJ38: 90 | BZ38: 90 | CS38: 13
A39: ЗАМОК ВИСЯЧИЙ | X39: 3187895231 | AD39: 796 | AG39: шт | AL39: 1 | AT39: 1 | BB39: 204 | BJ39: 204 | BZ39: 204 | CS39: 13
A40: ЗАМОК ВИСЯЧИЙ | X40: 4981110111 | AD40: 796 | AG40: шт | AL40: 1 | AT40: 1 | BB40: 135 | BJ40: 135 | BZ40: 135 | CS40: 13
A41: ПАСТА КОЛЕРНАЯ | X41: 2332190014 | AD41: 796 | AG41: шт | AL41: 6 | AT41: 6 | BB41: 50 | BJ41: 300 | BZ41: 300 | CS41: 13
A42: ШЛАНГ РЕЗИНОВЫЙ | X42: 2559290005 | AD42: 6 | AG42: м | AL42: 15 | AT42: 15 | BB42: 120 | BJ42: 1800 | BZ42: 1800 | CS42: 14
A43: ПОРОГ-СТЫК АЛЮМИНИЕВЫЙ ДЛЯ НАПОЛЬНЫХ ПОКРЫТИЙ | X43: 5275220014 | AD43: 796 | AG43: шт | AL43: 3 | AT43: 3 | BB43: 200 | BJ43: 600 | BZ43: 600 | CS43: 15
A44: ЭМАЛЬ ДЛЯ РАДИАТОРОВ ГЛЯНЦЕВАЯ 400мл | X44: 2312221732 | AD44: 796 | AG44: шт | AL44: 2 | AT44: 2 | BB44: 215 | BJ44: 430 | BZ44: 430 | CS44: 17
A45: ОТВОД КАНАЛИЗАЦИОННЫЙ ИЗ ПОЛИПРОПИЛЕНА | X45: 2248120090 | AD45: 796 | AG45: шт | AL45: 2 | AT45: 2 | BB45: 85 | BJ45: 170 | BZ45: 170 | CS45: 17
A46: ТРУБА ДЛЯ НАРУЖНОЙ КАНАЛИЗАЦИИ | X46: 2248200007 | AD46: 796 | AG46: шт | AL46: 5 | AT46: 5 | BB46: 505 | BJ46: 2525 | BZ46: 2525 | CS46: 17
A47: ГРУНТ-ЭМАЛЬ ПО РЖАВЧИНЕ | X47: 2313920103 | AD47: 796 | AG47: шт | AL47: 1 | AT47: 1 | BB47: 278 | BJ47: 278 | BZ47: 278 | CS47: 20
A48: РАСТВОРИТЕЛЬ | X48: 2319100001 | AD48: 796 | AG48: шт | AL48: 2 | AT48: 2 | BB48: 50 | BJ48: 100 | BZ48: 100 | CS48: 20
A49: СГОН ПРЯМОЙ | X49: 4923200055 | AD49: 796 | AG49: шт | AL49: 1 | AT49: 1 | BB49: 40 | BJ49: 40 | BZ49: 40 | CS49: 20
A50: СГОН СТАЛЬНОЙ С ЦИЛИНДРИЧЕСКОЙ РЕЗЬБОЙ | X50: 1462000800 | AD50: 796 | AG50: шт | AL50: 2 | AT50: 2 | BB50: 15 | BJ50: 30 | BZ50: 30 | CS50: 20
A51: КОНТРГАЙКА | X51: 1680002347 | AD51: 796 | AG51: шт | AL51: 1 | AT51: 1 | BB51: 15 | BJ51: 15 | BZ51: 15 | CS51: 20
A52: МУФТА ПРЯМАЯ | X52: 2248120208 | AD52: 796 | AG52: шт | AL52: 1 | AT52: 1 | BB52: 45 | BJ52: 45 | BZ52: 45 | CS52: 20
A53: ОТВОД СТАЛЬНОЙ КРУТОИЗОГНУТЫЙ | X53: 1468100069 | AD53: 796 | AG53: шт | AL53: 2 | AT53: 2 | BB53: 29 | BJ53: 58 | BZ53: 58 | CS53: 20
A54: ОТВОД СТАЛЬНОЙ КРУТОИЗОГНУТЫЙ | X54: 1468106002 | AD54: 796 | AG54: шт | AL54: 2 | AT54: 2 | BB54: 20 | BJ54: 40 | BZ54: 40 | CS54: 20
A55: ЛЕН САНТЕХНИЧЕСКИЙ | X55: 8112110013 | AD55: 796 | AG55: шт | AL55: 5 | AT55: 5 | BB55: 20 | BJ55: 100 | BZ55: 100 | CS55: 20
A56: КЮВЕТА ПЛАСТМАССОВАЯ ДЛЯ КРАСКИ | X56: 2293190191 | AD56: 796 | AG56: шт | AL56: 1 | AT56: 1 | BB56: 60 | BJ56: 60 | BZ56: 60 | CS56: 20
A57: КИСТЬ МАЛЯРНАЯ ПЛОСКАЯ | X57: 9677510048 | AD57: 796 | AG57: шт | AL57: 2 | AT57: 2 | BB57: 60 | BJ57: 120 | BZ57: 120 | CS57: 20
A58: КИСТЬ МАЛЯРНАЯ ПЛОСКАЯ | X58: 9677510049 | AD58: 796 | AG58: шт | AL58: 2 | AT58: 2 | BB58: 70 | BJ58: 140 | BZ58: 140 | CS58: 20
A59: ВАЛИК МАЛЯРНЫЙ ПОЛИАКРИЛ | X59: 9677510221 | AD59: 796 | AG59: шт | AL59: 4 | AT59: 4 | BB59: 145 | BJ59: 580 | BZ59: 580 | CS59: 20
A60: ПОДВЕС ПРЯМОЙ ДЛЯ ГИПСОКАРТОНА | X60: 9693100417 | AD60: 796 | AG60: шт | AL60: 30 | AT60: 30 | BB60: 10 | BJ60: 300 | BZ60: 300 | CS60: 21
A61: ВИНТ САМОНАРЕЗАЮЩИЙ | X61: 1650001173 | AD61: 166 | AG61: кг | AL61: 0.57 | AT61: 0.57 | BB61: 350 | BJ61: 199.5 | BZ61: 199.5 | CS61: 23
A62: СКОБЫ ДЛЯ СТЕПЛЕРА | X62: 9692810024 | AD62: 796 | AG62: шт | AL62: 1 | AT62: 1 | BB62: 145 | BJ62: 145 | BZ62: 145 | CS62: 23
A63: ПАКЕТ ПОЛИЭТИЛЕНОВЫЙ ФАСОВОЧНЫЙ | X63: 2293110081 | AD63: 796 | AG63: шт | AL63: 1 | AT63: 1 | BB63: 1.4 | BJ63: 1.4 | BZ63: 1.4 | CS63: 23
A64: ВИНТ САМОНАРЕЗАЮЩИЙ ДЛЯ ГИПСОКАРТОНА | X64: 1650000171 | AD64: 166 | AG64: кг | AL64: 0.25 | AT64: 0.25 | BB64: 470 | BJ64: 117.5 | BZ64: 117.5 | CS64: 23
A65: РЕЛЕ ВТЯГИВАЮЩЕЕ СТАРТЕРА | X65: 4573750014 | AD65: 796 | AG65: шт | AL65: 1 | AT65: 1 | BB65: 1845 | BJ65: 1845 | BZ65: 1845 | CS65: 23
A66: ЛАК ПАРКЕТНЫЙ | X66: 2311220052 | AD66: 796 | AG66: шт | AL66: 1 | AT66: 1 | BB66: 185 | BJ66: 185 | BZ66: 185 | CS66: 24
A67: КЮВЕТА ПЛАСТМАССОВАЯ ДЛЯ КРАСКИ | X67: 2293190191 | AD67: 796 | AG67: шт | AL67: 1 | AT67: 1 | BB67: 60 | BJ67: 60 | BZ67: 60 | CS67: 24
A68: КИСТЬ МАЛЯРНАЯ ПЛОСКАЯ | X68: 9677510050 | AD68: 796 | AG68: шт | AL68: 1 | AT68: 1 | BB68: 135 | BJ68: 135 | BZ68: 135 | CS68: 24
A69: ВАЛИК МАЛЯРНЫЙ ПОЛИАКРИЛ | X69: 9677510221 | AD69: 796 | AG69: шт | AL69: 1 | AT69: 1 | BB69: 145 | BJ69: 145 | BZ69: 145 | CS69: 24
A70: ПУШКА ТЕПЛОВАЯ | X70: 3468550155 | AD70: 796 | AG70: шт | AL70: 1 | AT70: 1 | BB70: 4490 | BJ70: 4490 | BZ70: 4490 | CS70: 27
A71: ПАСТА КОЛЕРОВОЧНАЯ УНИВЕРСАЛЬНАЯ | X71: 2322900071 | AD71: 796 | AG71: шт | AL71: 4 | AT71: 4 | BB71: 40 | BJ71: 160 | BZ71: 160 | CS71: 28
A72: СЕТКА МОСКИТНАЯ | X72: 2282800088 | AD72: 796 | AG72: шт | AL72: 2 | AT72: 2 | BB72: 300 | BJ72: 600 | BZ72: 600 | CS72: 28
A73: МУФТА ПОЛИПРОПИЛЕНОВАЯ СОЕДИНИТЕЛЬНАЯ | X73: 2248120313 | AD73: 796 | AG73: шт | AL73: 6 | AT73: 6 | BB73: 9 | BJ73: 54 | BZ73: 54 | CS73: 30
AL95: Итого | AT95: =SUM(AT21:BA94) -> 964.82 | BB95: X | BJ95: =SUM(BJ21:BQ94) -> 22000.4 | BZ95: =SUM(BZ21:CG94) -> 22000.4
A97: Принял | F97: Начальник участка | AW97: Сдал
F98: (должность) | Q98: (подпись) | AC98: (расшифровка подписи) | BJ98: (должность) | BU98: (подпись) | CC98: (расшифровка подписи)

Sheet _Config_ (hidden)
A1: 3 | B1: 1.07 | D1: FALSE | E1: TRUE | F1: Разбивка приходный.xlsx | G1: Пользователь Windows
A2: Новая2 | C2: TRUE | D2: FALSE | E2: 2 | H2: FALSE | I2: 0 | J2: 0 | AL2: FALSE | AO2: 1 | AR2: 1 | AS2: FALSE | AT2: FALSE | AZ2: Запрос1 | BA2: FALSE | BB2: ОШИБКА Таблицы выборки не заданы | BI2: TRUE | BJ2: ;;;;;;;True;;;;;;;;;;;;;;;;;;;;;;
A3: Новая3 | C3: TRUE | D3: FALSE | E3: 3 | H3: FALSE | I3: 0 | J3: 0 | AO3: 1 | AR3: 1 | AZ3: Запрос1 | BA3: FALSE | BB3: ОШИБКА Таблицы выборки не заданы | BI3: TRUE | BJ3: ;;;;;;;True;;;;;;;;;;;;;;;;;;;;;;
BJ4: ;;;;;;;True;;;;;;;;;;;;;;;;;;;;;;

Sheet _Names_ (hidden)
A1: ПКО!Print_Titles | B1: ПКО!$16:$19
A2: ПРИХОД за месяц'!Print_Titles | B2: ПРИХОД за месяц'!$16:$20
